bitfinex/quotes_BTCUSD_20240803
["timestamp","ask_amount","ask_price","bid_price","bid_amount"]
[1722705155899,1.27648,60860.0,60859.0,0.006]
[1722705156305,1.98994927,60860.0,60859.0,0.006]
[1722705156527,2.08994927,60860.0,60859.0,0.006]
[1722705156755,0.164362,60841.0,60840.0,0.09862429]
[1722705156959,0.164362,60841.0,60839.0,0.48267564]
[1722705156960,0.164365,60840.0,60839.0,0.48267564]
[1722705157177,0.493096,60840.0,60839.0,0.010164]
[1722705157378,0.3620437,60841.0,60839.0,0.010164]
[1722705157594,0.164365,60840.0,60839.0,0.010164]
[1722705157932,0.821827,60840.0,60839.0,0.010164]
[1722705158137,1.150558,60840.0,60839.0,0.010164]
[1722705158748,0.821827,60840.0,60839.0,0.014164]
[1722705158937,0.493096,60840.0,60839.0,0.014164]
[1722705159275,0.164365,60840.0,60839.0,0.014164]
[1722705159486,0.1976807,60841.0,60839.0,0.014164]
[1722705159688,0.1976807,60841.0,60840.0,0.07875194]
[1722705160094,0.1976661,60848.0,60840.0,0.23621118]
[1722705160320,0.1976661,60848.0,60847.0,0.07875194]
[1722705160520,0.290601,60864.0,60849.0,0.16434]
[1722705160724,0.290601,60864.0,60847.0,0.23621118]
[1722705160725,0.164306,60862.0,60855.0,0.07875194]
[1722705160931,0.1976021,60862.0,60856.0,0.15745924]
[1722705161128,0.1976021,60862.0,60857.0,0.07875194]
[1722705161129,0.3619081,60862.0,60857.0,0.07875194]
[1722705161339,0.1976021,60862.0,60858.0,0.42386146]
[1722705161542,0.1256,60876.0,60858.0,0.42386146]
[1722705161543,0.164285,60870.0,60858.0,0.28037865]
[1722705161784,0.32857,60870.0,60858.0,0.27709243]
[1722705161993,0.1984204,60871.0,60858.0,0.09958513]
[1722705161994,0.328609,60863.0,60858.0,0.09958513]
[1722705162195,0.492942,60859.0,60858.0,0.02083319]
[1722705162395,0.1976084,60863.0,60848.0,0.1583]
[1722705162396,0.164309,60861.0,60848.0,0.1583]
[1722705162531,0.164309,60861.0,60858.0,0.02083319]
[1722705162733,0.328614,60862.0,60849.0,0.15745924]
[1722705162932,0.332614,60862.0,60859.0,0.02082453]
[1722705163158,0.164309,60861.0,60849.0,0.15745924]
[1722705163358,0.1976084,60863.0,60860.0,0.02081587]
[1722705163568,0.1976084,60863.0,60861.0,0.07875194]
[1722705163772,0.1976084,60863.0,60858.0,0.001]
[1722705164161,0.1976084,60863.0,60850.0,0.164337]
[1722705164340,0.1976084,60863.0,60859.0,0.005]
[1722705164565,0.328612,60862.0,60859.0,0.002]
[1722705164757,0.164309,60861.0,60859.0,0.002]
[1722705164968,0.1976084,60863.0,60851.0,0.15745924]
[1722705165185,0.1976084,60863.0,60860.0,0.0156119]
[1722705165298,0.1976084,60863.0,60851.0,0.32179424]
[1722705165299,0.1976084,60863.0,60854.0,0.07875194]
[1722705165519,0.1976084,60863.0,60855.0,0.17310361]
[1722705165704,0.1976084,60863.0,60861.0,0.07875194]
[1722705165940,0.3618654,60870.0,60862.0,0.01559891]
[1722705166137,0.3618654,60870.0,60861.0,0.07875194]
[1722705166340,0.3618654,60870.0,60854.0,0.54625194]
[1722705166341,0.0693023,60869.0,60863.0,0.01559242]
[1722705166614,0.0693023,60869.0,60864.0,0.23949727]
[1722705166827,0.1975804,60870.0,60864.0,0.23949727]
[1722705166828,0.1975804,60870.0,60865.0,0.16158567]
[1722705167028,0.01073771,60871.0,60866.0,0.15745924]
[1722705167445,0.164289,60868.0,60867.0,0.02075526]
[1722705167662,0.164287,60869.0,60867.0,0.02075526]
[1722705167909,0.1975823,60868.0,60860.0,0.16431]
[1722705168120,0.1975823,60868.0,60861.0,0.23621118]
[1722705168668,0.1975823,60868.0,60861.0,0.15745924]
[1722705169229,0.164293,60867.0,60861.0,0.15745924]
[1722705169503,0.1975823,60868.0,60858.0,0.1583]
[1722705169724,0.3618723,60868.0,60859.0,0.15745924]
[1722705169933,0.1985823,60868.0,60859.0,0.15745924]
[1722705170138,0.3628723,60868.0,60861.0,0.005]
[1722705170344,0.3618723,60868.0,60861.0,0.005]
[1722705170556,0.3618723,60868.0,60859.0,0.15745924]
[1722705170777,0.1975823,60868.0,60863.0,0.07875194]
[1722705170988,0.1975823,60868.0,60864.0,0.15745924]
[1722705172009,0.1975823,60868.0,60865.0,0.00328564]
[1722705172216,0.1975823,60868.0,60867.0,0.164292]
[1722705172423,0.1975823,60868.0,60867.0,0.74913624]
[1722705172656,0.1975823,60868.0,60867.0,1.07772124]
[1722705172859,0.1975823,60868.0,60867.0,1.23602124]
[1722705173067,0.1975823,60868.0,60867.0,0.31575924]
[1722705173494,0.1975823,60868.0,60867.0,0.64434424]
[1722705173701,0.1975823,60868.0,60867.0,0.80863624]
[1722705173900,0.1975823,60868.0,60867.0,1.16122124]
[1722705174051,0.1985823,60868.0,60867.0,1.50380624]
[1722705174216,0.001,60868.0,60867.0,1.52380624]
[1722705174427,0.001,60868.0,60867.0,1.75037192]
[1722705174637,0.001,60868.0,60867.0,1.82837192]
[1722705174839,0.001,60868.0,60867.0,1.81837192]
[1722705175122,0.19853,60868.0,60867.0,0.65532492]
[1722705175297,0.19936,60868.0,60867.0,1.04313624]
[1722705175508,0.00183,60868.0,60867.0,1.72030624]
[1722705175825,0.00183,60868.0,60867.0,1.84833569]
[1722705176001,0.00183,60868.0,60867.0,1.47675069]
[1722705176207,0.1993532,60868.0,60867.0,1.49675069]
[1722705176416,0.1993532,60868.0,60867.0,1.37172124]
[1722705176619,0.1993532,60868.0,60867.0,0.54025924]
[1722705176825,0.1983532,60868.0,60867.0,0.52825924]
[1722705177051,0.1983532,60868.0,60867.0,1.34972124]
[1722705177249,0.1983532,60868.0,60867.0,1.01913624]
[1722705177471,0.1983532,60868.0,60867.0,0.70455124]
[1722705177627,0.1983532,60868.0,60867.0,1.03313624]
[1722705177805,0.1983532,60868.0,60867.0,0.51425924]
[1722705178012,0.1983532,60868.0,60867.0,0.52825924]
[1722705178214,0.1983532,60868.0,60867.0,0.42825924]
[1722705178426,0.1983532,60868.0,60867.0,0.92113624]
[1722705178628,0.1983532,60868.0,60867.0,0.60455124]
[1722705178951,0.1983532,60868.0,60867.0,0.93313624]
[1722705179156,0.1983532,60868.0,60867.0,1.27172124]
[1722705179363,0.00083,60868.0,60867.0,2.1656004]
[1722705179706,0.59811164,60899.0,60883.0,0.01]
[1722705179887,0.59811164,60899.0,60889.0,0.1583]
[1722705179888,0.47251164,60899.0,60889.0,0.1583]
[1722705180184,0.00926,60902.0,60890.0,0.17801546]
[1722705180591,0.00926,60902.0,60890.0,0.34224446]
[1722705180837,0.00926,60902.0,60890.0,0.17801546]
[1722705181051,0.492682,60891.0,60890.0,0.02055622]
[1722705181257,0.328421,60898.0,60890.0,0.02055622]
[1722705181466,0.164214,60896.0,60890.0,0.001]
[1722705181676,0.328428,60896.0,60890.0,0.001]
[1722705181879,0.164222,60894.0,60890.0,0.001]
[1722705182007,0.164224,60893.0,60880.0,0.54625194]
[1722705182249,0.328435,60895.0,60881.0,0.15745924]
[1722705182618,0.16422,60894.0,60881.0,0.17809333]
[1722705182832,0.1975064,60898.0,60887.0,0.07875194]
[1722705183034,0.1975064,60898.0,60887.0,0.15745924]
[1722705183246,0.164254,60881.0,60880.0,0.4675]
[1722705183476,0.1287,60881.0,60869.0,0.4675]
[1722705183680,0.16428,60872.0,60870.0,0.00157439]
[1722705183884,0.492844,60871.0,60870.0,0.00157439]
[1722705184090,0.492844,60871.0,60858.0,0.6293]
[1722705184091,0.328577,60869.0,60859.0,0.00157439]
[1722705184299,0.328577,60869.0,60854.0,0.07875194]
[1722705184300,0.1975959,60872.0,60860.0,0.15745924]
[1722705184508,0.1287,60871.0,60860.0,0.15745924]
[1722705184711,0.328584,60868.0,60860.0,0.15745924]
[1722705184921,0.1287,60871.0,60861.0,0.08203784]
[1722705185124,0.1975959,60872.0,60861.0,0.08203784]
[1722705185125,0.1975959,60872.0,60870.0,0.07975194]
[1722705185333,0.457195,60884.0,60870.0,0.07975194]
[1722705185334,0.164252,60882.0,60871.0,0.15745924]
[1722705185537,0.4905031,60884.0,60871.0,0.15745924]
[1722705185743,0.3262561,60884.0,60871.0,0.15745924]
[1722705185918,0.3262561,60884.0,60870.0,0.001]
[1722705186165,0.3262561,60884.0,60870.0,0.15845924]
[1722705186341,0.164261,60879.0,60871.0,0.15903363]
[1722705186652,0.164263,60878.0,60871.0,0.15745924]
[1722705187045,0.3262561,60884.0,60865.0,0.4675]
[1722705187046,0.328514,60881.0,60865.0,0.4675]
[1722705187256,0.328548,60874.0,60866.0,0.15903363]
[1722705187468,0.164276,60873.0,60866.0,0.15903363]
[1722705187591,0.164281,60871.0,60870.0,0.014]
[1722705187796,0.2824,60873.0,60856.0,0.46907439]
[1722705188024,0.2824,60873.0,60858.0,0.47251164]
[1722705188250,0.2824,60873.0,60861.0,0.07875194]
[1722705188456,0.492885,60866.0,60865.0,0.001]
[1722705188682,1.0190703,60866.0,60865.0,0.001]
[1722705188837,1.3476603,60866.0,60865.0,0.001]
[1722705189610,0.164314,60859.0,60856.0,0.4675]
[1722705189821,0.3619379,60859.0,60857.0,0.15745924]
[1722705190023,0.1287,60858.0,60848.0,0.07875194]
[1722705190229,0.1287,60858.0,60846.0,0.4675]
[1722705190230,0.1537,60857.0,60846.0,0.4675]
[1722705190542,0.493039,60847.0,60846.0,0.4675]
[1722705190748,0.1976816,60847.0,60846.0,0.4675]
[1722705191168,0.6907206,60847.0,60846.0,0.4675]
[1722705191339,0.3620276,60847.0,60846.0,0.4675]
[1722705191542,0.1976816,60847.0,60846.0,0.4815]
[1722705192060,0.1976816,60847.0,60846.0,0.62495924]
[1722705192266,0.1976366,60857.0,60846.0,0.63095924]
[1722705192400,0.1976366,60857.0,60846.0,0.4735]
[1722705192601,0.328654,60855.0,60846.0,0.4735]
[1722705192806,0.164333,60852.0,60846.0,0.4735]
[1722705193018,0.16433,60853.0,60848.0,0.07875194]
[1722705193405,0.1976366,60857.0,60849.0,0.15745924]
[1722705193830,0.1976366,60857.0,60849.0,0.16074566]
[1722705194036,0.1976366,60857.0,60849.0,0.15745924]
[1722705194440,0.164328,60854.0,60846.0,0.4675]
[1722705194655,0.164325,60855.0,60847.0,0.15745924]
[1722705194872,0.1986366,60857.0,60846.0,0.4675]
[1722705195068,0.328652,60855.0,60846.0,0.4675]
[1722705195293,0.164327,60854.0,60848.0,0.07875194]
[1722705195496,0.16433,60853.0,60849.0,0.002]
[1722705195700,0.16433,60853.0,60848.0,0.07875194]
[1722705195899,0.328672,60851.0,60846.0,0.4715]
[1722705196127,0.328661,60853.0,60846.0,0.4715]
[1722705196304,0.164341,60849.0,60847.0,0.01329392]
[1722705196503,0.1976689,60849.0,60847.0,0.01329392]
[1722705196920,0.1976689,60849.0,60846.0,0.4715]
[1722705196921,0.3620099,60849.0,60846.0,0.4675]
[1722705197121,0.3620099,60849.0,60848.0,0.07875194]
[1722705197122,0.1976689,60849.0,60848.0,0.07875194]
[1722705197329,0.1976689,60849.0,60848.0,0.5781856]
[1722705197541,0.1976176,60858.0,60849.0,0.2603]
[1722705197756,0.001,60854.0,60853.0,0.49299]
[1722705197917,0.001,60854.0,60850.0,0.15745924]
[1722705197918,0.1986179,60854.0,60850.0,0.15745924]
[1722705198121,0.1976179,60854.0,60853.0,0.16433]
[1722705198320,0.164291,60868.0,60854.0,0.164326]
[1722705198524,0.1976069,60868.0,60863.0,0.07875194]
[1722705198750,0.1976069,60868.0,60858.0,0.00157439]
[1722705198950,0.1976069,60868.0,60857.0,0.00328603]
[1722705198951,0.1976069,60868.0,60863.0,0.07875194]
[1722705199170,0.3262732,60876.0,60864.0,0.16074482]
[1722705199372,0.3262732,60876.0,60865.0,0.00157439]
[1722705199576,0.164271,60875.0,60866.0,0.15745924]
[1722705199793,0.3262732,60876.0,60867.0,0.00157439]
[1722705200002,0.1975732,60876.0,60873.0,0.07875194]
[1722705200134,0.1975732,60876.0,60869.0,0.00328535]
[1722705200336,0.3618432,60876.0,60874.0,0.01339215]
[1722705200540,0.3618422,60876.0,60865.0,0.00157439]
[1722705200776,0.1975732,60876.0,60875.0,0.01338566]
[1722705200986,0.1975732,60876.0,60867.0,0.00157439]
[1722705201131,0.164278,60873.0,60867.0,0.00157439]
[1722705201336,0.328542,60875.0,60867.0,0.00157439]
[1722705201337,0.164274,60874.0,60867.0,0.00157439]
[1722705201540,0.328542,60875.0,60867.0,0.00157439]
[1722705201541,0.164289,60868.0,60867.0,0.00157439]
[1722705201745,0.821355,60875.0,60874.0,0.002]
[1722705201992,0.164283,60871.0,60860.0,0.00157439]
[1722705202172,0.3618856,60871.0,60860.0,0.15903363]
[1722705202405,0.5261686,60871.0,60860.0,0.15903363]
[1722705202587,0.5261686,60871.0,60860.0,0.00157439]
[1722705202588,0.1976026,60871.0,60860.0,0.00157439]
[1722705202765,0.164309,60861.0,60852.0,0.00157439]
[1722705202971,0.164309,60861.0,60853.0,0.15745924]
[1722705202972,0.1976379,60861.0,60853.0,0.15745924]
[1722705203523,0.1976379,60861.0,60845.0,1.2571]
[1722705203524,0.1976379,60861.0,60846.0,0.00157439]
[1722705203734,0.1976379,60861.0,60855.0,0.07875194]
[1722705203939,0.1976379,60861.0,60855.0,0.15745924]
[1722705204132,0.1976379,60861.0,60856.0,0.07875194]
[1722705204375,0.164293,60867.0,60857.0,0.00157439]
[1722705204576,0.1976044,60868.0,60857.0,0.1623198]
[1722705204807,0.5261874,60868.0,60857.0,0.15903363]
[1722705205011,0.164293,60867.0,60857.0,0.15903363]
[1722705205213,0.1976044,60868.0,60857.0,0.32335163]
[1722705205415,0.1976044,60868.0,60857.0,0.15903363]
[1722705206117,0.1976044,60868.0,60858.0,0.16760193]
[1722705206252,0.1976044,60868.0,60859.0,0.15903363]
[1722705206680,0.1976044,60868.0,60865.0,0.164297]
[1722705206854,0.1975599,60876.0,60867.0,0.164292]
[1722705207039,0.1975599,60876.0,60864.0,0.16993757]
[1722705207040,0.3618289,60876.0,60868.0,0.16231906]
[1722705207240,0.1975599,60876.0,60871.0,0.07875194]
[1722705207449,0.1975599,60876.0,60875.0,0.492813]
[1722705207658,0.1303,60892.0,60876.0,0.166]
[1722705207859,0.1303,60892.0,60876.0,0.32345924]
[1722705208065,0.1303,60892.0,60869.0,0.166]
[1722705208066,0.328486,60886.0,60869.0,0.166]
[1722705208266,0.328472,60888.0,60870.0,0.15903363]
[1722705208493,0.328524,60879.0,60870.0,0.15903363]
[1722705208867,0.1975695,60879.0,60870.0,0.00157439]
[1722705209071,0.1975695,60879.0,60876.0,0.001]
[1722705209295,0.1975695,60879.0,60877.0,0.07875194]
[1722705209501,0.164252,60882.0,60876.0,0.001]
[1722705209704,0.164252,60882.0,60878.0,0.00946554]
[1722705209907,0.164255,60881.0,60876.0,0.001]
[1722705210110,0.1975567,60881.0,60876.0,0.001]
[1722705210313,0.1313,60888.0,60870.0,0.001]
[1722705210314,0.328505,60882.0,60870.0,0.001]
[1722705210528,0.1753,60881.0,60870.0,0.002]
[1722705210733,0.164269,60876.0,60871.0,0.00949584]
[1722705210934,0.164261,60879.0,60864.0,0.00157439]
[1722705211144,0.1975788,60882.0,60872.0,0.23621118]
[1722705211349,0.1975788,60882.0,60881.0,0.164254]
[1722705211562,0.3278167,60895.0,60881.0,0.48596824]
[1722705211773,0.1303,60895.0,60885.0,0.164243]
[1722705211970,0.1648,60899.0,60886.0,0.23949561]
[1722705212177,0.328414,60899.0,60886.0,0.15745924]
[1722705212393,0.1303,60900.0,60886.0,0.17160564]
[1722705212618,0.16421,60898.0,60887.0,0.00328434]
[1722705212791,0.328412,60899.0,60888.0,0.15745924]
[1722705212792,0.164206,60899.0,60888.0,0.15745924]
[1722705213004,0.1303,60900.0,60888.0,0.01413342]
[1722705213207,0.1303,60900.0,60867.0,0.01157439]
[1722705213208,0.1753,60896.0,60873.0,0.166]
[1722705213408,0.06600904,60895.0,60889.0,0.00807253]
[1722705213632,0.1753,60896.0,60875.0,0.328538]
[1722705213633,0.164233,60889.0,60875.0,0.328538]
[1722705213852,0.2951,60888.0,60876.0,0.15745924]
[1722705214077,0.459336,60888.0,60876.0,0.15745924]
[1722705214532,0.2951,60888.0,60886.0,0.002]
[1722705214767,0.1975377,60889.0,60886.0,0.15745924]
[1722705215395,0.1975377,60889.0,60887.0,0.15745924]
[1722705215607,0.1303,60899.0,60887.0,0.15745924]
[1722705215820,0.16421,60898.0,60887.0,0.15745924]
[1722705216030,0.001,60889.0,60887.0,0.15745924]
[1722705216301,0.1985028,60889.0,60887.0,0.15745924]
[1722705216722,0.1985028,60889.0,60886.0,0.023]
[1722705216930,0.1985028,60889.0,60886.0,0.18045924]
[1722705217356,0.1975028,60889.0,60886.0,0.17045924]
[1722705217589,0.1975028,60889.0,60886.0,0.013]
[1722705217999,0.3278305,60899.0,60886.0,0.013]
[1722705218205,0.164225,60892.0,60878.0,0.328524]
[1722705218418,0.001,60889.0,60886.0,0.01]
[1722705219055,0.1975333,60892.0,60879.0,0.00328496]
[1722705219265,0.1975333,60892.0,60887.0,0.00942661]
[1722705219491,0.1975333,60892.0,60889.0,0.07875194]
[1722705219714,0.32779,60899.0,60889.0,0.15745924]
[1722705220004,0.1303,60909.0,60894.0,0.328437]
[1722705220217,0.29448,60909.0,60896.0,0.164213]
[1722705220422,0.001,60899.0,60897.0,0.16074307]
[1722705220626,0.001,60899.0,60897.0,0.17012643]
[1722705220833,0.001,60899.0,60897.0,0.3310526]
[1722705221041,0.1303,60909.0,60899.0,0.164205]
[1722705221274,0.01426,60902.0,60900.0,0.15745924]
[1722705221484,0.01426,60902.0,60900.0,0.16448703]
[1722705221697,0.00926,60902.0,60900.0,0.16448703]
[1722705222961,0.2067302,60902.0,60900.0,0.00702779]
[1722705223173,0.1642,60901.0,60900.0,0.00702779]
[1722705223379,0.2067635,60902.0,60900.0,0.006]
[1722705223817,0.1642,60901.0,60900.0,0.006]
[1722705224019,0.2067635,60902.0,60900.0,0.009]
[1722705224584,0.2067635,60902.0,60900.0,0.16045924]
[1722705224930,0.2067635,60902.0,60901.0,1.30511318]
[1722705224931,0.00926,60902.0,60901.0,1.30511318]
[1722705225143,0.00926,60902.0,60901.0,0.98474023]
[1722705225550,0.00926,60902.0,60901.0,0.57758729]
[1722705225880,0.00926,60902.0,60901.0,1.23438929]
[1722705226518,0.00926,60902.0,60901.0,1.24838929]
[1722705226725,0.00926,60902.0,60901.0,0.02202805]
[1722705226935,0.626554,60902.0,60901.0,0.02202805]
[1722705227135,1.36209794,60902.0,60901.0,0.02202805]
[1722705227335,1.55959954,60902.0,60901.0,0.014]
[1722705227554,1.55959954,60902.0,60901.0,0.028]
[1722705227860,1.4808476,60902.0,60901.0,0.028]
[1722705228064,1.4808476,60902.0,60901.0,0.014]
[1722705228235,1.71048765,60902.0,60901.0,0.014]
[1722705228443,0.56110165,60902.0,60880.0,0.00328477]
[1722705228762,0.328415,60899.0,60881.0,0.15745924]
[1722705228978,0.40494005,60901.0,60881.0,0.15745924]
[1722705228979,0.16424,60887.0,60881.0,0.15745924]
[1722705229147,0.1975447,60887.0,60881.0,0.15745924]
[1722705230312,0.1975447,60887.0,60856.0,1.49457165]
[1722705230313,0.1247,60886.0,60873.0,1.2571]
[1722705230517,0.1247,60886.0,60874.0,0.15745924]
[1722705230518,0.164249,60883.0,60874.0,0.15745924]
[1722705230729,0.164256,60881.0,60875.0,0.1]
[1722705230932,0.164253,60882.0,60876.0,0.15745924]
[1722705231137,0.164252,60882.0,60876.0,0.15745924]
[1722705231371,0.328499,60883.0,60876.0,0.15745924]
[1722705231372,0.16425,60883.0,60876.0,0.15745924]
[1722705231567,0.164253,60882.0,60876.0,0.15745924]
[1722705231774,0.164253,60882.0,60880.0,0.001]
[1722705231978,0.164253,60882.0,60876.0,0.15745924]
[1722705232353,0.328488,60885.0,60876.0,0.16645924]
[1722705232354,0.164245,60885.0,60876.0,0.16645924]
[1722705232565,0.2745,60886.0,60877.0,0.07875194]
[1722705232770,0.1975447,60887.0,60884.0,0.07875194]
[1722705232974,0.1975447,60887.0,60885.0,0.15745924]
[1722705234491,0.1975447,60887.0,60884.0,0.001]
[1722705234693,0.1975447,60887.0,60876.0,0.006]
[1722705234694,0.164241,60886.0,60876.0,0.006]
[1722705234890,0.164241,60886.0,60877.0,0.15745924]
[1722705235113,0.164241,60886.0,60877.0,0.17072526]
[1722705235333,0.1975447,60887.0,60877.0,0.17072526]
[1722705235910,0.1975447,60887.0,60885.0,0.001]
[1722705236116,0.1975447,60887.0,60886.0,0.07875194]
[1722705236298,0.1975447,60887.0,60886.0,1.05741618]
[1722705236517,0.3221895,60899.0,60886.0,0.17066686]
[1722705236721,0.3221895,60899.0,60886.0,0.2494188]
[1722705236924,0.3221895,60899.0,60886.0,0.17066686]
[1722705237175,0.3221895,60899.0,60886.0,0.01320762]
[1722705237392,0.0707475,60898.0,60887.0,0.15745924]
[1722705237550,0.3221895,60899.0,60887.0,0.15745924]
[1722705237760,0.164218,60895.0,60887.0,0.17066037]
[1722705237955,0.164219,60894.0,60887.0,0.15745924]
[1722705238279,0.164223,60893.0,60888.0,0.01319464]
[1722705238513,0.3221895,60899.0,60888.0,0.01319464]
[1722705238514,0.4974895,60899.0,60888.0,0.01319464]
[1722705238714,0.4974895,60899.0,60886.0,0.001]
[1722705238715,0.0707954,60898.0,60886.0,0.001]
[1722705238963,0.164225,60892.0,60885.0,0.003]
[1722705239168,0.3617533,60892.0,60886.0,0.001]
[1722705239375,0.3617533,60892.0,60886.0,0.01420762]
[1722705239376,0.1975283,60892.0,60886.0,0.01420762]
[1722705239551,0.1975283,60892.0,60887.0,0.003]
[1722705239757,0.1975283,60892.0,60888.0,0.23621118]
[1722705239965,0.1247,60899.0,60897.0,0.16421]
[1722705239966,0.001,60898.0,60897.0,0.16421]
[1722705240138,0.001,60898.0,60897.0,0.81009224]
[1722705240339,0.001,60898.0,60897.0,0.33059549]
[1722705240743,0.1974902,60899.0,60897.0,0.33059549]
[1722705240978,0.1974902,60899.0,60898.0,0.15745924]
[1722705241186,0.1974902,60899.0,60898.0,0.01312977]
[1722705241340,0.1974902,60899.0,60894.0,0.164219]
[1722705241563,0.1974902,60899.0,60895.0,0.33482347]
[1722705241813,0.1974902,60899.0,60895.0,0.17060847]
[1722705241962,0.164214,60896.0,60895.0,0.01314923]
[1722705242168,0.328435,60895.0,60887.0,0.003]
[1722705242367,0.452418,60898.0,60887.0,0.003]
[1722705242368,0.288209,60898.0,60897.0,0.005]
[1722705242630,1.02214136,60898.0,60897.0,0.005]
[1722705242832,0.20109636,60898.0,60887.0,0.15745924]
[1722705243181,0.07709636,60897.0,60877.0,0.4675]
[1722705243386,0.20275194,60898.0,60878.0,0.15745924]
[1722705243387,0.164245,60885.0,60878.0,0.15745924]
[1722705243590,0.1975486,60885.0,60878.0,0.15745924]
[1722705243796,0.124,60898.0,60878.0,0.15745924]
[1722705243797,0.452418,60898.0,60897.0,0.004]
[1722705244017,1.2196255,60898.0,60897.0,0.004]
[1722705244446,1.55823614,60898.0,60897.0,0.004]
[1722705244795,1.22981814,60898.0,60897.0,0.004]
[1722705245461,0.164223,60893.0,60887.0,0.005]
[1722705245640,0.16422,60894.0,60887.0,0.005]
[1722705245817,0.16422,60894.0,60881.0,0.164254]
[1722705246018,0.07936646,60893.0,60882.0,0.15745924]
[1722705246241,0.164231,60890.0,60882.0,0.15745924]
[1722705246468,0.36175,60890.0,60882.0,0.15745924]
[1722705247023,0.197519,60890.0,60882.0,0.15745924]
[1722705247381,0.197519,60890.0,60889.0,0.164233]
[1722705247547,0.1974774,60898.0,60894.0,0.164219]
[1722705247748,0.1974774,60898.0,60895.0,0.15745924]
[1722705248624,0.1974774,60898.0,60895.0,0.32167524]
[1722705248890,0.1974774,60898.0,60889.0,0.154]
[1722705249130,0.1974774,60898.0,60890.0,0.10669226]
[1722705249382,0.164228,60891.0,60885.0,0.4675]
[1722705249629,0.1975255,60891.0,60885.0,0.4675]
[1722705249887,0.1975255,60891.0,60886.0,0.01320762]
[1722705250102,0.164238,60887.0,60886.0,0.01320762]
[1722705250339,0.124,60890.0,60877.0,0.4675]
[1722705250580,0.124,60890.0,60878.0,0.17071877]
[1722705250854,0.124,60890.0,60878.0,0.33497877]
[1722705251092,0.124,60890.0,60886.0,0.01]
[1722705251318,0.1975255,60891.0,60886.0,0.01]
[1722705251546,0.124,60896.0,60887.0,0.15745924]
[1722705251836,0.1975031,60898.0,60888.0,0.11985823]
[1722705252088,0.1975031,60898.0,60889.0,0.15745924]
[1722705252299,0.1975031,60898.0,60890.0,0.10662484]
[1722705252503,0.1975031,60898.0,60889.0,0.17064739]
[1722705252504,0.1975031,60898.0,60891.0,0.32168624]
[1722705252724,0.1975031,60898.0,60891.0,0.17063441]
[1722705252969,0.1975031,60898.0,60891.0,0.33486141]
[1722705253218,0.1975031,60898.0,60891.0,0.17063441]
[1722705253695,0.1975031,60898.0,60891.0,0.17563441]
[1722705253929,0.1975031,60898.0,60891.0,0.17063441]
[1722705254204,0.1975031,60898.0,60891.0,0.17863441]
[1722705254392,0.1975031,60898.0,60896.0,0.164214]
[1722705254597,0.1975031,60898.0,60896.0,0.15745924]
[1722705254743,0.1975031,60898.0,60897.0,0.01313625]
[1722705255336,0.1975031,60898.0,60897.0,0.15745924]
[1722705255633,0.1975031,60898.0,60897.0,0.65009324]
[1722705255835,0.1975031,60898.0,60897.0,0.17059549]
[1722705256196,0.1975031,60898.0,60897.0,0.27707003]
[1722705256619,0.1975031,60898.0,60897.0,0.76970403]
[1722705256829,0.1975031,60898.0,60897.0,0.28507003]
[1722705256983,0.1975031,60898.0,60897.0,0.17859549]
[1722705257183,0.1975031,60898.0,60897.0,0.18359549]
[1722705257388,0.1975031,60898.0,60897.0,0.02613625]
[1722705257703,0.1975031,60898.0,60897.0,0.013]
[1722705257906,0.1975031,60898.0,60897.0,0.17045924]
[1722705258340,0.1975031,60898.0,60897.0,0.18359549]
[1722705258550,0.1975031,60898.0,60897.0,0.02613625]
[1722705258750,0.6901301,60898.0,60897.0,0.02613625]
[1722705258948,0.44902253,60898.0,60897.0,0.013]
[1722705259151,0.28481353,60898.0,60897.0,0.013]
[1722705259349,0.77744053,60898.0,60897.0,0.013]
[1722705259572,0.44902253,60898.0,60897.0,0.013]
[1722705259983,1.38615853,60898.0,60897.0,0.013]
[1722705260176,1.05774053,60898.0,60897.0,0.013]
[1722705260377,1.38615853,60898.0,60897.0,0.013]
[1722705260579,1.05774053,60898.0,60897.0,0.013]
[1722705260917,1.38615853,60898.0,60897.0,0.013]
[1722705261116,1.2988481,60898.0,60897.0,0.013]
[1722705261327,0.5596554,60898.0,60897.0,0.013]
[1722705261489,0.4033554,60898.0,60897.0,0.013]
[1722705261917,0.5675644,60898.0,60897.0,0.013]
[1722705262118,0.4033554,60898.0,60897.0,0.013]
[1722705262278,0.40715102,60898.0,60897.0,0.013]
[1722705262474,0.28315102,60898.0,60897.0,0.013]
[1722705262681,0.1975031,60898.0,60897.0,1.35744955]
[1722705262992,0.1974339,60898.0,60897.0,1.12902655]
[1722705263389,0.1974339,60898.0,60897.0,1.12402655]
[1722705263598,0.1974339,60898.0,60897.0,1.12802655]
[1722705263788,0.1974339,60898.0,60897.0,1.14002655]
[1722705263987,0.1974339,60898.0,60897.0,1.81087255]
[1722705264290,0.1974339,60898.0,60897.0,1.47044955]
[1722705264473,0.1974339,60898.0,60897.0,1.47093928]
[1722705264838,0.1974339,60898.0,60897.0,1.81374103]
[1722705265191,0.1974339,60898.0,60897.0,1.8323616]
[1722705265316,0.00926,60902.0,60901.0,1.159403]
[1722705265527,0.00926,60902.0,60901.0,1.89704935]
[1722705265729,0.00926,60902.0,60901.0,1.56612876]
[1722705265933,0.00926,60902.0,60901.0,2.06685966]
[1722705266157,0.00926,60902.0,60901.0,2.32058173]
[1722705266359,0.00926,60902.0,60901.0,2.35348916]
[1722705266573,0.00926,60902.0,60901.0,2.75328965]
[1722705266787,0.00926,60902.0,60901.0,2.42850418]
[1722705266984,0.00926,60902.0,60901.0,2.27366054]
[1722705267196,0.00926,60902.0,60901.0,2.73874062]
[1722705267603,0.00926,60902.0,60901.0,2.28766054]
[1722705267807,0.00926,60902.0,60901.0,2.11265365]
[1722705268089,0.00926,60902.0,60901.0,2.4103731]
[1722705268276,0.00926,60902.0,60901.0,2.3857992]
[1722705268646,0.00926,60902.0,60901.0,2.3717992]
[1722705268849,0.00926,60902.0,60901.0,2.28333231]
[1722705269218,0.00926,60902.0,60901.0,2.25533231]
[1722705269424,0.00926,60902.0,60901.0,2.20111707]
[1722705269631,0.00926,60902.0,60901.0,2.21511707]
[1722705269836,0.00926,60902.0,60901.0,2.20111707]
[1722705269837,0.2066515,60902.0,60901.0,2.20111707]
[1722705270038,0.2066515,60902.0,60901.0,2.18711707]